fUST/lending_fUST_20250503
["ID","MTS","AMOUNT","RATE_DAILY","PERIOD"]
[359642907,1746213032369,-400.0,0.00019178,2]
[359642908,1746213032379,-452.72,0.00019178,2]
[359642909,1746213032389,-400.0,0.00019178,2]
[359642910,1746213032399,-400.0,0.00019178,2]
[359642911,1746213032408,-400.0,0.00019178,2]
[359642912,1746213032418,-400.0,0.00019178,2]
[359642913,1746213032427,-572.69,0.00019178,2]
[359642914,1746213032437,-400.0,0.00019178,2]
[359642915,1746213032446,-400.0,0.00019178,2]
[359642916,1746213032456,-503.14,0.00019178,2]
[359642917,1746213032466,-662.87,0.00019178,2]
[359642918,1746213032476,-400.0,0.00019178,2]
[359642919,1746213032486,-400.0,0.00019178,2]
[359642920,1746213032496,-482.36,0.00019178,2]
[359642921,1746213032506,-400.0,0.00019178,2]
[359642922,1746213032515,-400.0,0.00019178,2]
[359642923,1746213032524,-400.0,0.00019178,2]
[359642924,1746213032533,-423.71,0.00019178,2]
[359642925,1746213032543,-633.22,0.00019178,2]
[359642926,1746213032554,-400.0,0.00019178,2]
[359642927,1746213032564,-400.0,0.00019178,2]
[359642928,1746213032574,-400.0,0.00019178,2]
[359642929,1746213032584,-400.0,0.00019178,2]
[359642930,1746213032595,-400.0,0.00019178,2]
[359642931,1746213032605,-400.0,0.00019178,2]
[359642932,1746213032615,-400.0,0.00019178,2]
[359642933,1746213032625,-747.02,0.00019178,2]
[359642934,1746213032635,-400.0,0.00019178,2]
[359642935,1746213032645,-400.0,0.00019178,2]
[359642936,1746213032655,-24.32065497,0.00019178,2]
[359642937,1746213032669,-375.67934503,0.00019178,2]
[359642938,1746213032679,-167.47662164,0.00019178,2]
[359642939,1746213032696,-232.52337836,0.00019178,2]
[359642940,1746213032707,-400.0,0.00019178,2]
[359642941,1746213032717,-667.34,0.00019178,2]
[359642942,1746213032727,-400.0,0.00019178,2]
[359642943,1746213032738,-400.0,0.00019178,2]
[359642944,1746213032748,-984.69,0.00019178,2]
[359642945,1746213032759,-400.0,0.00019178,2]
[359642946,1746213032769,-557.07,0.00019178,2]
[359642947,1746213032779,-400.0,0.00019178,2]
[359642948,1746213032789,-589.91,0.00019178,2]
[359642949,1746213032799,-411.6,0.00019178,2]
[359642950,1746213032810,-400.0,0.00019178,2]
[359642951,1746213032819,-400.0,0.00019178,2]
[359642952,1746213032829,-400.0,0.00019178,2]
[359642953,1746213032840,-400.0,0.00019178,2]
[359642954,1746213032851,-400.0,0.00019178,2]
[359642955,1746213032862,-1007.55,0.00019178,2]
[359642956,1746213032873,-506.1753759,0.00019178,2]
[359642957,1746213032884,-757.79,0.00019178,2]
[359642958,1746213032894,-498.23,0.00019178,2]
[359642959,1746213032904,-400.0,0.00019178,2]
[359642960,1746213032914,-400.0,0.00019178,2]
[359642961,1746213032924,-599.73465291,0.00019178,2]
[359642972,1746213037928,-66.17534709,0.00019178,2]
[359642973,1746213037937,-400.0,0.00019178,2]
[359642974,1746213037947,-181.80182376,0.00019178,2]
[359644732,1746213523520,250.0,0.0001796,2]
[359644764,1746213934155,-2119.92424782,0.0001815,2]
[359644849,1746214238092,-1864.46438388,0.0001815,2]
[359644908,1746214240568,-4131.6370252,0.0001815,2]
[359644909,1746214240580,-151.0,0.00018585,2]
[359644910,1746214240591,-344.82675903,0.000189,2]
[359644911,1746214240603,-198.72532899,0.00019078,2]
[359644912,1746214240613,-1106.16123947,0.00019078,2]
[359644913,1746214240625,-300.0,0.00019167,2]
[359644914,1746214240635,-208.52,0.00019168,3]
[359644915,1746214240645,-625.58,0.00019168,3]
[359644916,1746214240656,-182.32195626,0.00019176,2]
[359645136,1746214243221,-317.67804374,0.00019176,2]
[359645138,1746214243231,-500.0,0.00019176,2]
[359645140,1746214243242,-500.0,0.00019176,2]
[359645142,1746214243252,-597.64404788,0.00019176,2]
[359645144,1746214243262,-103.61881001,0.00019176,2]
[359645148,1746214243283,-396.38118999,0.00019176,2]
[359645150,1746214243294,-500.0,0.00019176,2]
[359645152,1746214243304,-500.0,0.00019176,2]
[359645154,1746214243314,-500.0,0.00019176,2]
[359645156,1746214243324,-400.0,0.00019178,2]
[359645159,1746214243335,-482.17,0.00019178,2]
[359645161,1746214243345,-113.30645767,0.00019178,2]
[359645165,1746214243375,-384.47426724,0.00019178,2]
[359645167,1746214243386,-400.0,0.00019178,2]
[359645169,1746214243396,-414.18219602,0.00019178,2]
[359646058,1746215151140,-669.1302447,0.00018198,2]
[359646059,1746215151163,-1716.9333537,0.0001829,2]
[359646241,1746215438335,-2793.994849,0.00018095,2]
[359646242,1746215438345,-803.22051541,0.00018726,2]
[359646243,1746215438355,-1097.64478488,0.000189,2]
[359646244,1746215438365,-811.4889611,0.00018986,2]
[359646245,1746215438375,-45.3624101,0.00019074,2]
[359646246,1746215438409,-254.6375899,0.00019074,2]
[359646247,1746215438419,-1000.0,0.00019076,2]
[359646248,1746215438429,-500.0,0.00019077,2]
[359646249,1746215438438,-578.66427351,0.00019077,2]
[359646250,1746215438447,-500.0,0.00019077,2]
[359646251,1746215438457,-500.0,0.00019077,2]
[359646252,1746215438466,-500.0,0.00019077,2]
[359646253,1746215438476,-500.0,0.00019077,2]
[359646254,1746215438485,-500.0,0.00019077,2]
[359646255,1746215438495,-500.0,0.00019077,2]
[359646256,1746215438505,-500.0,0.00019077,2]
[359646257,1746215438513,-500.0,0.00019077,2]
[359646258,1746215438521,-989.4981608,0.00019078,2]
[359646259,1746215438532,-555.79065365,0.00019078,2]
[359646260,1746215438540,-322.83044162,0.00019078,2]
[359646568,1746215443400,-214.38482482,0.00019078,2]
[359646570,1746215443410,-493.71917518,0.00019078,2]
[359647280,1746216030973,-151.6473945,0.00018029,2]
[359647281,1746216033652,-59.4700319,0.00018029,2]
[359647282,1746216102014,-199.99943,0.00027397,120]
[359647284,1746216270288,350.90513,0.00017979,2]
[359647285,1746216342154,-156.18277155,0.00018064,2]
[359647286,1746216342175,-29.45043398,0.00018064,2]
[359647292,1746216615389,775.3205621,0.0001794,2]
[359647293,1746216619396,4954.8255746,0.00017798,2]
[359647310,1746216632539,-378.23692108,0.00018064,2]
[359647311,1746216632550,-7187.6340761,0.00018148,2]
[359647312,1746216632560,-300.0,0.00018164,2]
[359647313,1746216632569,-4118.0154739,0.00018165,2]
[359647315,1746216632578,-151.0,0.00018585,2]
[359647317,1746216632588,-211.25292567,0.00018907,2]
[359647319,1746216632597,-1490.39786756,0.00018907,2]
[359647320,1746216632607,-211.25292564,0.0001895,2]
[359647321,1746216632616,-649.1911689,0.00018986,2]
[359647322,1746216632625,-211.25292564,0.00018993,2]
[359647323,1746216632635,-37089.47223995,0.00019,2]
[359648434,1746216808268,5000.0,0.00016,2]
[359648435,1746216808598,5000.0,0.00016,2]
[359648437,1746216912753,156.18277155,0.00017966,2]
[359648440,1746217311913,-290.0,0.00024,30]
[359648441,1746217311982,-175.164666,0.00024,30]
[359648442,1746217311994,-114.835334,0.00024,30]
[359648443,1746217312031,-40.67,0.00024,30]
[359648446,1746217399604,-0.006848,0.00024,30]
[359648447,1746217399670,-2108.3,0.00025,30]
[359648448,1746217399718,-0.006848,0.00025,30]
[359648449,1746217399749,-2108.3,0.00025,30]
[359648450,1746217399781,-183.386304,0.00025,30]
[359648452,1746217483742,-175.0,0.00025,30]
[359648455,1746217554108,-300.0,0.00018065,2]
[359648456,1746217554131,-3302.76369454,0.00018066,2]
[359648546,1746217838759,-300.0,0.00018041,2]
[359648548,1746217838769,-100.30707717,0.00018042,2]
[359649618,1746217914143,1000.0,0.00017942,2]
[359649647,1746218737135,-300.0,0.00018041,2]
[359649648,1746218737157,-11012.82857673,0.00018042,2]
[359649649,1746218737178,-2138.52169338,0.00018794,2]
[359649650,1746218737205,-211.25292564,0.000188,2]
[359649651,1746218737424,-500.0,0.00018892,2]
[359649652,1746218737456,-500.0,0.00018892,2]
[359649653,1746218737478,-651.6473945,0.00018892,2]
[359649654,1746218737500,-500.0,0.00018892,2]
[359649655,1746218737528,-500.0,0.00018892,2]
[359649656,1746218737551,-500.0,0.00018892,2]
[359649657,1746218737580,-500.0,0.00018892,2]
[359649658,1746218737611,-500.0,0.00018892,2]
[359649659,1746218737640,-500.0,0.00018892,2]
[359649660,1746218737663,-500.0,0.00018892,2]
[359649661,1746218737691,-500.0,0.00018892,2]
[359649662,1746218737713,-500.0,0.00018892,2]
[359649663,1746218737740,-500.0,0.00018892,2]
[359649664,1746218737762,-500.0,0.00018892,2]
[359649665,1746218737790,-500.0,0.00018892,2]
[359649666,1746218737812,-500.0,0.00018892,2]
[359649667,1746218737840,-500.0,0.00018892,2]
[359649668,1746218737869,-500.0,0.00018892,2]
[359649669,1746218737891,-600.0,0.00018892,2]
[359649670,1746218737921,-500.0,0.00018892,2]
[359649671,1746218737949,-500.0,0.00018892,2]
[359649672,1746218737979,-500.0,0.00018892,2]
[359649673,1746218738007,-500.0,0.00018892,2]
[359649674,1746218738035,-500.0,0.00018892,2]
[359649675,1746218738062,-500.0,0.00018892,2]
[359649676,1746218738090,-500.0,0.00018892,2]
[359649677,1746218738117,-500.0,0.00018892,2]
[359649678,1746218738146,-500.0,0.00018892,2]
[359649679,1746218738174,-500.0,0.00018892,2]
[359649680,1746218738204,-500.0,0.00018892,2]
[359649681,1746218738231,-500.0,0.00018892,2]
[359649682,1746218738259,-434.16284707,0.00018892,2]
[359649683,1746218738287,-500.0,0.00018892,2]
[359649684,1746218738314,-500.0,0.00018892,2]
[359649685,1746218738343,-500.0,0.00018892,2]
[359649686,1746218738373,-500.0,0.00018892,2]
[359649687,1746218738402,-500.0,0.00018892,2]
[359649688,1746218738430,-500.0,0.00018892,2]
[359649689,1746218738457,-500.0,0.00018892,2]
[359649690,1746218738485,-500.0,0.00018892,2]
[359649691,1746218738513,-500.0,0.00018892,2]
[359649692,1746218738533,-312.70190995,0.00018892,2]
[359649693,1746218738554,-500.0,0.00018892,2]
[359649694,1746218738576,-411.8039378,0.00018892,2]
[359649695,1746218738598,-50000.0,0.00018893,2]
[359649696,1746218738618,-500.0,0.000189,2]
[359649697,1746218738639,-4107.12742268,0.000189,2]
[359649698,1746218738660,-519.3529351,0.00018986,2]
[359649699,1746218738680,-9250.0,0.00019,2]
[359649700,1746218738700,-12910.52776005,0.00019,2]
[359649701,1746218738721,-151.0,0.00019,2]
[359649702,1746218738741,-211.25292564,0.00019,2]
[359649703,1746218738761,-151.0,0.00019007,2]
[359649704,1746218738782,-5000.0,0.00019007,2]
[359649705,1746218738803,-152.0,0.00019064,2]
[359649706,1746218738824,-500.0,0.00019073,2]
[359649707,1746218738846,-500.0,0.00019073,2]
[359649708,1746218738867,-501.05854735,0.00019073,2]
[359649709,1746218738887,-500.0,0.00019073,2]
[359649710,1746218738909,-500.0,0.00019073,2]
[359649711,1746218738930,-500.0,0.00019073,2]
[359649712,1746218738952,-212.59875341,0.00019073,2]
[359649713,1746218738972,-500.0,0.00019073,2]
[359649714,1746218738992,-500.0,0.00019073,2]
[359649715,1746218739014,-500.0,0.00019073,2]
[359649716,1746218739035,-403.0,0.00019088,2]
[359649717,1746218739054,-547.889,0.00019088,2]
[359649718,1746218739076,-2686.81,0.0001909,3]
[359649719,1746218739097,-1343.41,0.0001909,3]
[359649720,1746218739118,-671.7,0.0001909,3]
[359649721,1746218739138,-335.85,0.0001909,3]
[359649722,1746218739159,-167.93,0.0001909,3]
[359649723,1746218739182,-503.8,0.0001909,3]
[359649724,1746218739205,-24987.4358377,0.000191,2]
[359649725,1746218754096,-708.104,0.00019088,2]
[359649726,1746218754118,-2244.0,0.00019088,2]
[359649727,1746218754140,-142072.5241623,0.000191,2]
[359649728,1746218754163,-151.0,0.000191,2]
[359649729,1746218754186,-301.5637675,0.000191,2]
[359649730,1746218754211,-166.9,0.00019173,2]
[359649731,1746218754236,-166.9,0.00019173,2]
[359649732,1746218754257,-166.9,0.00019173,2]
[359649733,1746218754283,-166.9,0.00019173,2]
[359649734,1746218754304,-166.9,0.00019173,2]
[359649735,1746218754324,-500.0,0.00019173,2]
[359649736,1746218754345,-503.51089266,0.00019173,2]
[359649737,1746218754367,-500.0,0.00019173,2]
[359649738,1746218754389,-151.0,0.00019178,2]
[359649739,1746218754412,-151.0,0.00019178,2]
[359649740,1746218754433,-151.0,0.00019178,2]
[359649741,1746218754454,-151.0,0.00019178,2]
[359649742,1746218754474,-151.0,0.00019178,2]
[359649743,1746218754494,-151.0,0.00019178,2]
[359649744,1746218754515,-182.412509,0.00019178,2]
[359649745,1746218754536,-400.0,0.00019178,2]
[359649746,1746218754556,-462.08,0.00019178,2]
[359649747,1746218754577,-400.0,0.00019178,2]
[359649748,1746218754598,-531.57,0.00019178,2]
[359649749,1746218754619,-400.81636898,0.00019178,2]
[359649750,1746218754641,-400.0,0.00019178,2]
[359649751,1746218754663,-400.0,0.00019178,2]
[359649752,1746218754685,-400.0,0.00019178,2]
[359649753,1746218754706,-400.0,0.00019178,2]
[359649754,1746218754727,-400.0,0.00019178,2]
[359649755,1746218754748,-400.0,0.00019178,2]
[359649756,1746218754769,-400.0,0.00019178,2]
[359649757,1746218754789,-400.0,0.00019178,2]
[359649758,1746218754811,-400.0,0.00019178,2]
[359649759,1746218754833,-400.0,0.00019178,2]
[359649760,1746218754855,-400.0,0.00019178,2]
[359649761,1746218754876,-533.86,0.00019178,2]
[359649762,1746218754897,-233.926546,0.00019178,2]
[359649763,1746218754919,-233.926546,0.00019178,2]
[359649764,1746218754940,-233.926546,0.00019178,2]
[359649765,1746218754962,-233.926546,0.00019178,2]
[359649766,1746218754985,-233.926546,0.00019178,2]
[359649767,1746218755007,-295.36989863,0.00019178,2]
[359649768,1746218755028,-400.0,0.00019178,2]
[359649769,1746218755050,-400.0,0.00019178,2]
[359649770,1746218755072,-400.0,0.00019178,2]
[359649771,1746218755094,-500.0,0.00019178,2]
[359649772,1746218755115,-500.0,0.00019178,2]
[359649773,1746218755137,-400.0,0.00019178,2]
[359649774,1746218755158,-151.0,0.00019178,2]
[359649775,1746218755181,-400.0,0.00019178,2]
[359649776,1746218755206,-400.0,0.00019178,2]
[359649777,1746218755227,-427.55,0.00019178,2]
[359649778,1746218755248,-400.0,0.00019178,2]
[359649779,1746218755269,-400.0,0.00019178,2]
[359649780,1746218755290,-400.0,0.00019178,2]
[359649781,1746218755311,-400.0,0.00019178,2]
[359649782,1746218755332,-400.0,0.00019178,2]
[359649783,1746218755353,-526.44,0.00019178,2]
[359649784,1746218755374,-613.19,0.00019178,2]
[359649785,1746218755394,-400.0,0.00019178,2]
[359649786,1746218755415,-400.0,0.00019178,2]
[359649787,1746218755436,-248.88159921,0.00019178,2]
[359649788,1746218755457,-988.86,0.00019178,2]
[359649789,1746218755478,-400.0,0.00019178,2]
[359649790,1746218755499,-400.0,0.00019178,2]
[359649791,1746218755519,-400.0,0.00019178,2]
[359649792,1746218755540,-400.0,0.00019178,2]
[359649793,1746218755560,-1069.88,0.00019178,2]
[359649794,1746218755581,-560.65,0.00019178,2]
[359649795,1746218755602,-488.59115021,0.00019178,2]
[359649796,1746218755625,-439.35,0.00019178,2]
[359649797,1746218755645,-492.18,0.00019178,2]
[359649798,1746218755666,-2160.6,0.00019178,2]
[359649799,1746218755688,-1156.2,0.00019178,2]
[359649800,1746218755709,-819.66,0.00019178,2]
[359649801,1746218755729,-400.0,0.00019178,2]
[359649802,1746218755750,-537.6,0.00019178,2]
[359649803,1746218755772,-400.0,0.00019178,2]
[359649804,1746218755793,-400.0,0.00019178,2]
[359649805,1746218755814,-600.88,0.00019178,2]
[359649806,1746218755836,-400.0,0.00019178,2]
[359649807,1746218755865,-407.16,0.00019178,2]
[359649808,1746218755896,-623.6,0.00019178,2]
[359649809,1746218755924,-409.39,0.00019178,2]
[359649810,1746218755948,-400.0,0.00019178,2]
[359649811,1746218755974,-614.62,0.00019178,2]
[359649812,1746218755999,-400.0,0.00019178,2]
[359649813,1746218756025,-400.0,0.00019178,2]
[359649814,1746218756051,-400.0,0.00019178,2]
[359649815,1746218756077,-400.0,0.00019178,2]
[359649816,1746218756103,-1853.09,0.00019178,2]
[359649817,1746218756131,-421.17,0.00019178,2]
[359649818,1746218756156,-400.0,0.00019178,2]
[359649819,1746218756182,-400.0,0.00019178,2]
[359649820,1746218756209,-400.0,0.00019178,2]
[359649821,1746218756235,-948.34,0.00019178,2]
[359649822,1746218756261,-400.0,0.00019178,2]
[359649823,1746218756285,-426.52,0.00019178,2]
[359649824,1746218756308,-400.0,0.00019178,2]
[359649825,1746218756333,-400.0,0.00019178,2]
[359649826,1746218756359,-400.0,0.00019178,2]
[359649827,1746218756384,-400.0,0.00019178,2]
[359649828,1746218756409,-500.0,0.00019178,3]
[359649829,1746218756434,-424.09,0.00019178,2]
[359649830,1746218756460,-572.57,0.00019178,2]
[359649831,1746218756486,-151.0,0.00019178,3]
[359649832,1746218756511,-500.0,0.00019178,3]
[359649833,1746218756533,-896.16,0.00019178,2]
[359649834,1746218756555,-499.21,0.00019178,2]
[359649835,1746218756580,-400.0,0.00019178,2]
[359649836,1746218756608,-450.8,0.00019178,2]
[359649837,1746218756633,-400.0,0.00019178,2]
[359649838,1746218756656,-400.0,0.00019178,2]
[359649839,1746218756681,-586.87,0.00019178,2]
[359649840,1746218756707,-400.0,0.00019178,2]
[359649841,1746218756730,-400.0,0.00019178,2]
[359649842,1746218756753,-670.11,0.00019178,2]
[359649843,1746218756776,-582.43,0.00019178,2]
[359649844,1746218756801,-400.0,0.00019178,2]
[359649845,1746218756829,-400.0,0.00019178,2]
[359649846,1746218756853,-400.0,0.00019178,2]
[359649847,1746218756880,-538.59505648,0.00019178,2]
[359649848,1746218756904,-400.0,0.00019178,2]
[359649849,1746218756929,-400.0,0.00019178,2]
[359649850,1746218756953,-400.0,0.00019178,2]
[359649851,1746218756978,-400.0,0.00019178,2]
[359649852,1746218757001,-400.0,0.00019178,2]
[359649853,1746218757025,-722.3,0.00019178,2]
[359649854,1746218757049,-502.9,0.00019178,2]
[359649855,1746218757073,-400.0,0.00019178,2]
[359649856,1746218757095,-151.0,0.00019178,3]
[359649857,1746218757118,-151.0,0.00019178,3]
[359649858,1746218757142,-453.54,0.00019178,2]
[359649859,1746218757166,-213.76306522,0.00019178,3]
[359649860,1746218757190,-500.0,0.00019178,3]
[359649861,1746218757216,-400.0,0.00019178,2]
[359649862,1746218757241,-400.0,0.00019178,2]
[359649863,1746218757268,-400.0,0.00019178,2]
[359649864,1746218757294,-400.0,0.00019178,2]
[359649865,1746218757319,-400.0,0.00019178,2]
[359649866,1746218757344,-400.0,0.00019178,2]
[359649867,1746218757369,-400.0,0.00019178,2]
[359649868,1746218757392,-400.0,0.00019178,2]
[359649869,1746218757415,-1930.4,0.00019178,2]
[359649870,1746218757439,-1399.72,0.00019178,2]
[359649871,1746218757462,-500.0,0.00019178,2]
[359649872,1746218757486,-400.0,0.00019178,2]
[359649873,1746218757509,-400.0,0.00019178,2]
[359649874,1746218757534,-4219.8,0.00019178,2]
[359649875,1746218757557,-2167.67,0.00019178,2]
[359649876,1746218757580,-748.38,0.00019178,2]
[359649877,1746218757604,-400.0,0.00019178,2]
[359649878,1746218757627,-328.45670193,0.00019178,2]
[359649879,1746218757649,-424.47,0.00019178,2]
[359649880,1746218757674,-1721.17,0.00019178,2]
[359649881,1746218757698,-634.36,0.00019178,2]
[359649882,1746218757722,-400.0,0.00019178,2]
[359649883,1746218757746,-1485.66,0.00019178,2]
[359649884,1746218757770,-400.0,0.00019178,2]
[359649885,1746218757793,-400.0,0.00019178,2]
[359649886,1746218757817,-1189.36,0.00019178,2]
[359649887,1746218757843,-3374.86,0.00019178,2]
[359649888,1746218757868,-400.0,0.00019178,2]
[359649889,1746218757893,-400.0,0.00019178,2]
[359649890,1746218757918,-539.59,0.00019178,2]
[359649891,1746218757943,-1385.06,0.00019178,2]
[359649892,1746218757969,-400.0,0.00019178,2]
[359649893,1746218757993,-1462.13,0.00019178,2]
[359649894,1746218758018,-400.0,0.00019178,2]
[359649895,1746218758043,-888.16,0.00019178,2]
[359649896,1746218758068,-505.04982139,0.00019178,2]
[359649897,1746218758095,-400.0,0.00019178,2]
[359649898,1746218758123,-508.4524371,0.00019178,2]
[359649900,1746218827094,-175.44491,0.00018896,2]
[359649901,1746218827117,-175.44491,0.00018896,2]
[359649902,1746218827139,-175.44491,0.00018896,2]
[359649903,1746218827160,-175.44491,0.00018896,2]
[359649904,1746218827181,-175.44491,0.00018896,2]
[359649905,1746218827205,-175.44491,0.00018896,2]
[359649906,1746218827231,-175.44491,0.00018896,2]
[359649907,1746218827252,-175.44491,0.00018896,2]
[359649908,1746218827274,-415.4823481,0.00018986,2]
[359649909,1746218827294,-175.44491,0.00019,2]
[359649910,1746218827315,-175.44491,0.00019,2]
[359649911,1746218827335,-175.44491,0.00019,2]
[359649912,1746218827355,-175.44491,0.00019,2]
[359649913,1746218827376,-175.44491,0.00019007,2]
[359649914,1746218827396,-175.44491,0.00019007,2]
[359649915,1746218827416,-500.0,0.00019073,2]
[359649916,1746218827438,-1450.06286886,0.00019078,2]
[359649917,1746218827458,-175.44491,0.00019088,2]
[359649918,1746218827478,-175.44491,0.00019088,2]
[359649919,1746218827498,-175.44491,0.0001909,2]
[359649920,1746218827519,-175.44491,0.0001909,2]
[359649921,1746218827539,-175.44491,0.000191,2]
[359649922,1746218827560,-175.4449,0.000191,2]
[359649923,1746218827583,-218.89133697,0.00019177,2]
[359649924,1746218827606,-638.26275646,0.00019177,2]
[359649925,1746218827630,-400.0,0.00019177,2]
[359649926,1746218827662,-500.0,0.00019177,2]
[359649927,1746218827692,-500.0,0.00019177,2]
[359649928,1746218827721,-593.4162847,0.00019177,2]
[359649929,1746218827741,-500.0,0.00019178,2]
[359649930,1746218827762,-400.0,0.00019178,2]
[359649931,1746218827782,-400.0,0.00019178,2]
[359649932,1746218827803,-400.0,0.00019178,2]
[359649933,1746218827823,-5018.9,0.00019178,2]
[359649934,1746218827843,-639.54,0.00019178,2]
[359649935,1746218827864,-400.0,0.00019178,2]
[359649936,1746218827886,-400.0,0.00019178,2]
[359649937,1746218827908,-1712.73,0.00019178,2]
[359649938,1746218827930,-1628.99,0.00019178,2]
[359649939,1746218827953,-1455.51,0.00019178,2]
[359649940,1746218827975,-400.0,0.00019178,2]
[359649941,1746218827996,-555.11,0.00019178,2]
[359649942,1746218828017,-400.0,0.00019178,2]
[359649943,1746218828038,-400.0,0.00019178,2]
[359649944,1746218828057,-151.0,0.00019178,2]
[359649945,1746218828078,-1377.36,0.00019178,2]
[359649946,1746218828100,-3647.58,0.00019178,2]
[359649947,1746218828122,-755.2,0.00019178,2]
[359649948,1746218828143,-400.0,0.00019178,2]
[359649949,1746218828163,-614.67,0.00019178,2]
[359649950,1746218828183,-633.54,0.00019178,2]
[359649951,1746218828203,-355.0558257,0.00019178,2]
[359649952,1746218828227,-2021.19,0.00019178,2]
[359649953,1746218828247,-400.0,0.00019178,2]
[359649954,1746218828269,-1248.11,0.00019178,2]
[359649955,1746218828290,-943.67,0.00019178,2]
[359649956,1746218828311,-1605.7,0.00019178,2]
[359649957,1746218828331,-1721.81,0.00019178,2]
[359649958,1746218828350,-965.57,0.00019178,2]
[359649959,1746218828372,-400.0,0.00019178,2]
[359649960,1746218828395,-460.36,0.00019178,2]
[359649961,1746218828415,-477.47,0.00019178,2]
[359649962,1746218828436,-1162.35,0.00019178,2]
[359649963,1746218828456,-400.0,0.00019178,2]
[359649964,1746218828477,-400.0,0.00019178,2]
[359649965,1746218828499,-466.89,0.00019178,2]
[359649966,1746218828520,-1749.7,0.00019178,2]
[359649967,1746218828541,-834.19,0.00019178,2]
[359649968,1746218828563,-630.11,0.00019178,2]
[359649969,1746218828585,-1414.66,0.00019178,2]
[359649970,1746218828605,-576.44,0.00019178,2]
[359649971,1746218828626,-400.0,0.00019178,2]
[359649972,1746218828649,-1925.57,0.00019178,2]
[359649973,1746218828670,-400.0,0.00019178,2]
[359649974,1746218828690,-500.91,0.00019178,2]
[359649975,1746218828712,-400.0,0.00019178,2]
[359649976,1746218828732,-400.0,0.00019178,2]
[359649977,1746218828754,-400.0,0.00019178,2]
[359649978,1746218828773,-1294.6,0.00019178,2]
[359649979,1746218828795,-400.0,0.00019178,2]
[359649980,1746218828816,-400.0,0.00019178,2]
[359649981,1746218828837,-400.0,0.00019178,2]
[359649982,1746218828860,-858.77,0.00019178,2]
[359649983,1746218828881,-500.0,0.00019178,2]
[359649984,1746218828903,-151.0,0.00019178,2]
[359649985,1746218828924,-400.0,0.00019178,2]
[359649986,1746218828945,-400.0,0.00019178,2]
[359649987,1746218828965,-500.0,0.00019178,2]
[359649988,1746218828988,-341.57600268,0.00019178,2]
[359649989,1746218829009,-726.21,0.00019178,2]
[359649990,1746218829034,-151.0,0.00019178,2]
[359649991,1746218829055,-1334.22,0.00019178,2]
[359649992,1746218829080,-1277.01,0.00019178,2]
[359649993,1746218829101,-428.81,0.00019178,2]
[359649994,1746218829121,-400.0,0.00019178,2]
[359649995,1746218829143,-400.0,0.00019178,2]
[359649996,1746218829163,-638.16,0.00019178,2]
[359649997,1746218829184,-400.0,0.00019178,2]
[359649998,1746218829204,-400.0,0.00019178,2]
[359649999,1746218829228,-499.83,0.00019178,2]
[359650000,1746218829248,-400.0,0.00019178,2]
[359650001,1746218829269,-617.75,0.00019178,2]